bitfinex-derivatives/quotes_BTCF0:USTF0_20241110
["timestamp","ask_amount","ask_price","bid_price","bid_amount"]
[1731206582893,0.3608,77457.0,77456.0,0.17538067]
[1731206583076,0.00193696,77461.0,77459.0,0.064508]
[1731206583794,0.00193696,77461.0,77454.0,0.11516]
[1731206584493,0.00193696,77461.0,77453.0,0.064513]
[1731206584494,0.064508,77459.0,77453.0,0.064513]
[1731206584797,0.00193696,77461.0,77453.0,0.064513]
[1731206585186,0.00193696,77461.0,77453.0,0.07327978]
[1731206585591,0.00193696,77461.0,77451.0,0.0911]
[1731206585803,0.064514,77452.0,77446.0,0.11516]
[1731206586098,0.3608,77457.0,77451.0,0.11087067]
[1731206586295,0.42531,77457.0,77451.0,0.11087067]
[1731206586489,0.06451,77457.0,77451.0,0.11087067]
[1731206586691,0.06451,77457.0,77451.0,0.13670345]
[1731206587195,0.00193696,77461.0,77451.0,0.13670345]
[1731206587196,0.064511,77456.0,77451.0,0.13670345]
[1731206588295,0.00193696,77461.0,77451.0,0.13670345]
[1731206588486,0.00193696,77461.0,77458.0,0.11087067]
[1731206589004,0.00193696,77461.0,77459.0,0.064507]
[1731206589888,0.00193696,77461.0,77459.0,0.0556263]
[1731206590299,0.00193696,77461.0,77459.0,0.1505263]
[1731206590886,0.3608,77468.0,77459.0,0.0949]
[1731206591213,0.064496,77474.0,77462.0,0.064505]
[1731206591694,0.00193657,77477.0,77462.0,0.064505]
[1731206591695,0.064499,77470.0,77462.0,0.064505]
[1731206591897,0.064502,77466.0,77463.0,0.11516]
[1731206592091,0.064502,77466.0,77462.0,0.064505]
[1731206592695,0.1887,77469.0,77459.0,0.21006]
[1731206592696,0.064503,77465.0,77459.0,0.21006]
[1731206592897,0.064503,77465.0,77461.0,0.064506]
[1731206593896,0.1887,77469.0,77461.0,0.064506]
[1731206594108,0.091,77469.0,77462.0,0.064505]
[1731206594607,0.064499,77470.0,77462.0,0.064505]
[1731206595097,0.0956,77475.0,77462.0,0.064505]
[1731206595316,0.064502,77466.0,77463.0,0.11516]
[1731206596312,0.064502,77466.0,77462.0,0.179625]
[1731206596798,0.0956,77475.0,77462.0,0.11512]
[1731206597108,0.064503,77465.0,77462.0,0.11512]
[1731206597400,0.064503,77465.0,77462.0,0.09112]
[1731206601322,0.064509,77458.0,77457.0,0.00878042]
[1731206601523,0.064509,77458.0,77452.0,0.064513]
[1731206601524,0.3608,77463.0,77452.0,0.064513]
[1731206601698,0.06451,77457.0,77455.0,0.47592]
[1731206601903,0.06451,77457.0,77455.0,0.11512]
[1731206602301,0.064512,77454.0,77453.0,0.11512]
[1731206602806,0.064512,77454.0,77446.0,0.0899]
[1731206603101,0.064513,77453.0,77451.0,0.14095278]
[1731206603896,0.064513,77453.0,77451.0,0.02583278]
[1731206604511,0.064516,77449.0,77446.0,0.12421726]
[1731206604807,0.1857,77455.0,77448.0,0.064517]
[1731206605112,0.064512,77454.0,77448.0,0.064517]
[1731206605301,0.1857,77455.0,77448.0,0.064517]
[1731206605521,0.064514,77452.0,77448.0,0.064517]
[1731206606406,0.0894,77455.0,77448.0,0.064517]
[1731206606606,0.0894,77455.0,77447.0,0.02582608]
[1731206606810,0.0894,77455.0,77448.0,0.064517]
[1731206606811,0.064512,77454.0,77448.0,0.064517]
[1731206606999,0.0894,77455.0,77447.0,0.02582608]
[1731206607000,0.064515,77451.0,77447.0,0.02582608]
[1731206607206,0.064515,77451.0,77447.0,0.14070608]
[1731206607816,0.064515,77451.0,77447.0,0.02582608]
[1731206608204,0.064517,77449.0,77447.0,0.02582608]
[1731206609531,0.0894,77455.0,77444.0,0.0018]
[1731206609532,0.064519,77445.0,77444.0,0.0018]
[1731206609719,0.064524,77440.0,77438.0,0.3608]
[1731206609912,0.0901,77439.0,77438.0,0.3608]
[1731206611622,0.20097067,77439.0,77425.0,0.274856]
[1731206611807,0.064531,77432.0,77425.0,0.159936]
[1731206612405,0.20097067,77439.0,77424.0,0.3626]
[1731206612614,0.20097067,77439.0,77419.0,0.3608]
[1731206612615,0.064533,77429.0,77419.0,0.3608]
[1731206612917,0.196,77428.0,77419.0,0.3608]
[1731206614321,0.064539,77422.0,77419.0,0.3608]
[1731206614617,0.196,77428.0,77419.0,0.3608]
[1731206614822,0.196,77428.0,77418.0,0.00884978]
[1731206614823,0.064541,77419.0,77418.0,0.00884978]
[1731206615007,0.064541,77419.0,77417.0,0.02583086]
[1731206615440,0.064542,77418.0,77412.0,0.11087067]
[1731206615717,0.0961,77421.0,77390.0,0.03806524]
[1731206615718,0.064545,77414.0,77405.0,0.17554067]
[1731206615911,0.0961,77421.0,77407.0,0.46254731]
[1731206616107,0.064547,77412.0,77407.0,0.46254731]
[1731206616421,0.0962,77413.0,77406.0,0.06467]
[1731206616629,0.06455,77409.0,77406.0,0.06467]
[1731206616820,0.06455,77409.0,77404.0,0.06467]
[1731206617022,0.06455,77409.0,77398.0,0.17542867]
[1731206617023,0.06455,77409.0,77401.0,0.064556]
[1731206619227,0.3608,77410.0,77401.0,0.064556]
[1731206619423,0.064552,77406.0,77400.0,0.00883681]
[1731206620431,0.3608,77410.0,77405.0,0.11087067]
[1731206620919,0.162647,77412.0,77405.0,0.11087067]
[1731206621225,0.0981,77412.0,77405.0,0.11087067]
[1731206621428,0.06455,77409.0,77401.0,0.064556]
[1731206622627,0.06455,77409.0,77400.0,0.00883681]
[1731206622628,0.0981,77412.0,77407.0,0.11087067]
[1731206623421,0.0962,77413.0,77407.0,0.11087067]
[1731206623621,0.160747,77413.0,77407.0,0.11087067]
[1731206625126,0.160747,77413.0,77404.0,0.064553]
[1731206625127,0.064548,77412.0,77404.0,0.064553]
[1731206627027,0.064548,77412.0,77405.0,0.06467]
[1731206627226,0.0962,77413.0,77405.0,0.06467]
[1731206627428,0.064548,77411.0,77405.0,0.06467]
[1731206629676,0.064548,77411.0,77406.0,0.06467]
[1731206630534,0.03224174,77411.0,77406.0,0.06467]
[1731206631127,0.3608,77415.0,77413.0,0.064545]
[1731206631332,0.11087067,77435.0,77411.0,0.06467]
[1731206631333,0.0903,77428.0,77419.0,0.064541]
[1731206631527,0.0903,77428.0,77423.0,0.11087067]
[1731206632443,0.154834,77428.0,77423.0,0.11087067]
[1731206632828,0.064535,77427.0,77423.0,0.11087067]
[1731206633144,0.064535,77427.0,77419.0,0.064541]
[1731206633341,0.0903,77428.0,77423.0,0.11087067]
[1731206633576,0.3608,77430.0,77427.0,0.064534]
[1731206635039,0.3608,77437.0,77434.0,0.064529]
[1731206635333,0.0902,77439.0,77434.0,0.064529]
[1731206635732,0.0902,77439.0,77429.0,0.11087067]
[1731206636131,0.0902,77439.0,77429.0,0.11967534]
[1731206637624,0.0902,77439.0,77435.0,0.11087067]
[1731206637830,0.0971,77440.0,77435.0,0.17539767]
[1731206638031,0.3608,77444.0,77435.0,0.17539767]
[1731206638634,0.3608,77444.0,77437.0,0.064526]
[1731206639640,0.3608,77444.0,77441.0,0.11087067]
[1731206642031,0.3608,77452.0,77441.0,0.17539267]
[1731206642342,0.3608,77452.0,77441.0,0.15139267]
[1731206642550,0.3608,77452.0,77447.0,0.11087067]
[1731206642731,0.3608,77452.0,77447.0,0.17538867]
[1731206643345,0.3608,77452.0,77442.0,0.3608]
[1731206643540,0.06645455,77448.0,77442.0,0.3608]
[1731206643843,0.06645455,77448.0,77429.0,0.12836524]
[1731206643844,0.3608,77444.0,77428.0,0.49750534]
[1731206644037,0.064526,77438.0,77430.0,0.11468]
[1731206645435,0.064526,77438.0,77433.0,0.11087067]
[1731206645630,0.064526,77438.0,77429.0,0.07338764]
[1731206645936,0.064526,77438.0,77434.0,0.11087067]
[1731206646534,0.2857,77443.0,77434.0,0.11087067]
[1731206646946,0.350222,77443.0,77434.0,0.11087067]
[1731206647939,0.2857,77443.0,77436.0,0.064526]
[1731206648241,0.2857,77443.0,77440.0,0.11087067]
[1731206648441,0.2857,77443.0,77437.0,0.064526]
[1731206648652,0.2857,77443.0,77440.0,0.11087067]
[1731206649949,0.2857,77443.0,77431.0,0.00193679]
[1731206650140,0.064527,77437.0,77431.0,0.00193679]
[1731206651641,0.064527,77437.0,77431.0,0.06646779]
[1731206652751,0.2857,77443.0,77431.0,0.06646779]
[1731206652944,0.2857,77443.0,77435.0,0.11087067]
[1731206653145,0.064524,77440.0,77435.0,0.11087067]
[1731206654454,0.2857,77443.0,77435.0,0.11087067]
[1731206654743,0.19,77443.0,77442.0,0.11087067]
[1731206655340,0.064525,77439.0,77431.0,0.06646779]
[1731206655543,0.064525,77439.0,77436.0,0.11087067]
[1731206655938,0.19,77443.0,77436.0,0.11087067]
[1731206656350,0.19,77443.0,77436.0,0.17539667]
[1731206657448,0.19,77443.0,77436.0,0.11087067]
[1731206657645,0.064522,77442.0,77436.0,0.11087067]
[1731206660947,0.064522,77442.0,77433.0,0.064529]
[1731206660948,0.064523,77441.0,77433.0,0.064529]
[1731206662756,0.19,77443.0,77438.0,0.17539567]
[1731206662973,0.02493328,77442.0,77438.0,0.17539567]
[1731206663252,0.02493328,77441.0,77438.0,0.11087067]
[1731206663459,0.00193755,77448.0,77446.0,0.064518]
[1731206663655,0.02493219,77447.0,77446.0,0.064518]
[1731206665554,0.02493174,77447.0,77446.0,0.17538867]
[1731206666958,0.00193755,77448.0,77446.0,0.17538867]
[1731206667562,0.3608,77468.0,77447.0,0.3608]
[1731206667756,0.02492942,77467.0,77462.0,0.064505]
[1731206667960,0.02492942,77466.0,77462.0,0.064505]
[1731206668151,0.02492942,77466.0,77457.0,0.11087067]
[1731206668152,0.3608,77468.0,77457.0,0.11087067]
[1731206668464,0.064501,77467.0,77457.0,0.11087067]
[1731206669166,0.064503,77465.0,77456.0,0.06451]
[1731206669363,0.1521,77464.0,77456.0,0.06451]
[1731206669954,0.1521,77464.0,77456.0,0.0735471]
[1731206670655,0.1521,77464.0,77457.0,0.11087067]
[1731206671485,0.1521,77464.0,77463.0,0.11087067]
[1731206671486,0.0766,77464.0,77463.0,0.11087067]
[1731206672368,0.0766,77464.0,77463.0,0.08687067]
[1731206674454,0.0766,77464.0,77457.0,0.0764]
[1731206674849,0.064506,77462.0,77457.0,0.0764]
[1731206677054,0.0766,77464.0,77457.0,0.0764]
[1731206677360,0.064507,77460.0,77457.0,0.0764]
[1731206677766,0.064508,77459.0,77457.0,0.0764]
[1731206678157,0.3608,77459.0,77456.0,0.0090371]
[1731206678362,0.064509,77457.0,77448.0,0.1144]
[1731206679467,0.064509,77457.0,77449.0,0.064516]
[1731206680266,0.064511,77455.0,77449.0,0.178916]
[1731206680958,0.0726,77458.0,77448.0,0.00891588]
[1731206681160,0.3608,77452.0,77447.0,0.00184]
[1731206681367,0.064516,77450.0,77446.0,0.11087067]
[1731206681765,0.3608,77452.0,77441.0,0.0761]
[1731206681969,0.06452,77444.0,77434.0,0.14022311]
[1731206682175,0.3608,77452.0,77434.0,0.14022311]
[1731206682176,0.064522,77443.0,77434.0,0.14022311]
[1731206682467,0.064516,77450.0,77440.0,0.11087067]
[1731206682675,0.3608,77452.0,77447.0,0.11087067]
[1731206682868,0.0726,77458.0,77452.0,0.064513]
[1731206683173,0.0726,77458.0,77447.0,0.11087067]
[1731206683480,0.0726,77458.0,77447.0,0.25448767]
[1731206683875,0.0726,77458.0,77448.0,0.064517]
[1731206684470,0.0726,77458.0,77447.0,0.19875751]
[1731206684661,0.0726,77458.0,77450.0,0.064515]
[1731206684971,0.06451,77457.0,77450.0,0.064515]
[1731206685177,0.0726,77458.0,77447.0,0.19875751]
[1731206685178,0.064511,77456.0,77447.0,0.19875751]
[1731206685472,0.0726,77458.0,77447.0,0.19875751]
[1731206685473,0.00193701,77459.0,77454.0,0.11087067]
[1731206685669,0.00193701,77459.0,77457.0,0.064509]
[1731206687357,0.00193701,77459.0,77457.0,0.040509]
[1731206689086,0.3608,77460.0,77457.0,0.040509]
[1731206689458,0.3608,77460.0,77455.0,0.00893722]
[1731206689662,0.3608,77460.0,77458.0,0.064508]
[1731206692265,0.064508,77459.0,77450.0,0.178915]
[1731206692467,0.138108,77459.0,77450.0,0.178915]
[1731206692681,0.3608,77460.0,77458.0,0.11087067]
[1731206692974,0.3608,77460.0,77459.0,0.064508]
[1731206694670,0.0766,77464.0,77462.0,0.064505]
[1731206700167,0.02492579,77463.0,77462.0,0.064505]
[1731206702574,0.02492579,77463.0,77459.0,0.00869671]
[1731206702882,0.02492579,77462.0,77458.0,0.064508]
[1731206703178,0.02492579,77461.0,77459.0,0.3608]
[1731206703396,0.0766,77464.0,77459.0,0.3608]
[1731206703683,0.02492591,77463.0,77459.0,0.3608]
[1731206703896,0.02492591,77462.0,77459.0,0.3608]
[1731206704069,0.02492591,77461.0,77459.0,0.3608]
[1731206704279,0.02492591,77460.0,77459.0,0.3608]
[1731206705367,0.0766,77464.0,77459.0,0.3608]
[1731206705575,0.02492591,77463.0,77459.0,0.425308]
[1731206705766,0.02492591,77462.0,77459.0,0.425308]
[1731206705973,0.0766,77464.0,77459.0,0.425308]
[1731206707689,0.064513,77454.0,77450.0,0.0018]
[1731206707881,0.064513,77454.0,77443.0,0.3608]
[1731206707882,0.140913,77453.0,77443.0,0.3608]
[1731206708075,0.220213,77453.0,77443.0,0.3608]
[1731206708271,0.1557,77453.0,77446.0,0.11087067]
[1731206708683,0.220213,77453.0,77443.0,0.36955716]
[1731206709581,0.1557,77453.0,77443.0,0.36955716]
[1731206709787,0.1557,77453.0,77433.0,0.39877802]
[1731206709788,0.064519,77446.0,77433.0,0.425329]
[1731206709978,0.081,77445.0,77434.0,0.064528]
[1731206710172,0.081,77445.0,77433.0,0.3608]
[1731206710378,0.3608,77455.0,77443.0,0.11087067]
[1731206710579,0.3608,77455.0,77454.0,0.11087067]
[1731206711288,0.36967193,77463.0,77454.0,0.11087067]
[1731206711289,0.36967193,77463.0,77454.0,0.17538267]
[1731206711788,0.3608,77463.0,77454.0,0.17538267]
[1731206712282,0.3608,77463.0,77454.0,0.11087067]
[1731206712476,0.3608,77463.0,77456.0,0.06451]
[1731206713383,0.3608,77463.0,77454.0,0.11087067]
[1731206713579,0.3608,77463.0,77449.0,0.00907049]
[1731206713885,0.3608,77463.0,77447.0,0.11087067]
[1731206713886,0.3608,77463.0,77455.0,0.064511]
[1731206714485,0.02492853,77462.0,77455.0,0.03880552]
[1731206714783,0.3608,77463.0,77453.0,0.064512]
[1731206715084,0.02492866,77462.0,77454.0,0.064512]
[1731206715277,0.064511,77456.0,77448.0,0.3608]
[1731206715487,0.064513,77454.0,77448.0,0.3608]
[1731206715679,0.0799,77453.0,77448.0,0.3608]
[1731206716403,0.144414,77453.0,77448.0,0.3608]
[1731206716783,0.064514,77452.0,77448.0,0.3608]
[1731206717285,0.0783,77451.0,77448.0,0.3608]
[1731206717479,0.0783,77451.0,77448.0,0.3368]
[1731206717686,0.0783,77451.0,77433.0,0.3608]
[1731206717687,0.0783,77451.0,77433.0,0.47167067]
[1731206717882,0.3608,77447.0,77436.0,0.11416]
[1731206718094,0.3608,77447.0,77439.0,0.11087067]
[1731206718385,0.4381,77455.0,77445.0,0.17538967]
[1731206718779,0.064513,77453.0,77445.0,0.11087067]
[1731206719287,0.064514,77452.0,77441.0,0.064523]
[1731206719979,0.064515,77451.0,77441.0,0.064523]
[1731206720588,0.064515,77451.0,77439.0,0.11087067]
[1731206721482,0.0773,77455.0,77445.0,0.11087067]
[1731206722084,0.02492982,77454.0,77445.0,0.11087067]
[1731206722287,0.02492982,77453.0,77445.0,0.11087067]
[1731206722488,0.02492982,77452.0,77445.0,0.11087067]
[1731206722680,0.02492982,77451.0,77440.0,0.3608]
[1731206722892,0.064519,77447.0,77440.0,0.425323]
[1731206723189,0.02492982,77446.0,77440.0,0.425323]
[1731206723390,0.02492982,77446.0,77440.0,0.3608]
[1731206723691,0.08944882,77445.0,77440.0,0.3608]
[1731206723893,0.064519,77445.0,77440.0,0.3608]
[1731206724186,0.3608,77454.0,77440.0,0.3608]
[1731206724488,0.064514,77452.0,77445.0,0.11087067]
[1731206724788,0.02493161,77451.0,77445.0,0.11087067]
[1731206724984,0.02493161,77450.0,77445.0,0.11087067]
[1731206725184,0.3608,77454.0,77445.0,0.11087067]
[1731206725383,0.02493067,77453.0,77452.0,0.11087067]
[1731206725591,0.02493067,77453.0,77449.0,0.064516]
[1731206725780,0.02493067,77452.0,77450.0,0.0757]
[1731206726085,0.02493067,77451.0,77450.0,0.0757]
[1731206726493,0.3608,77463.0,77450.0,0.0757]
[1731206726494,0.3608,77463.0,77453.0,0.064512]
[1731206726793,0.02492871,77462.0,77452.0,0.11087067]
[1731206726977,0.02492871,77461.0,77457.0,0.064509]
[1731206727179,0.02492871,77460.0,77457.0,0.064509]
[1731206727375,0.3608,77463.0,77457.0,0.064509]
[1731206727376,0.02492799,77459.0,77457.0,0.064509]
[1731206727586,0.02492799,77458.0,77450.0,0.00877448]
[1731206727886,0.3608,77463.0,77449.0,0.3608]
[1731206727887,0.02492823,77457.0,77449.0,0.3608]
[1731206728184,0.02492823,77456.0,77449.0,0.425316]
[1731206728384,0.43401273,77463.0,77449.0,0.425316]
[1731206728574,0.02492857,77462.0,77449.0,0.425316]
[1731206728778,0.02492857,77461.0,77449.0,0.425316]
[1731206728976,0.02492857,77460.0,77449.0,0.425316]
[1731206729192,0.02492857,77459.0,77449.0,0.425316]
[1731206729399,0.02492857,77458.0,77449.0,0.425316]
[1731206729584,0.02492857,77457.0,77449.0,0.425316]
[1731206729782,0.02492857,77456.0,77449.0,0.425316]
[1731206729993,0.02492857,77455.0,77449.0,0.425316]
[1731206730297,0.43401273,77463.0,77449.0,0.425316]
[1731206730499,2.1027,77458.0,77451.0,0.064514]
[1731206730683,2.1027,77458.0,77449.0,0.3608]
[1731206730888,0.14271,77457.0,77449.0,0.3608]
[1731206731194,0.0782,77457.0,77444.0,0.06452]
[1731206731401,0.064511,77456.0,77444.0,0.06452]
[1731206731895,0.3608,77456.0,77444.0,0.06452]
[1731206732087,0.3608,77456.0,77441.0,0.198622]
[1731206732293,0.064514,77452.0,77441.0,0.198622]
[1731206733287,0.3608,77456.0,77441.0,0.084702]
[1731206733526,0.064516,77450.0,77441.0,0.084702]
[1731206733688,0.1548,77449.0,77441.0,0.084702]
[1731206733894,0.1548,77449.0,77446.0,0.17538867]
[1731206734384,0.3608,77456.0,77446.0,0.17538867]
[1731206735202,0.3608,77456.0,77452.0,0.11087067]
[1731206735393,2.1775,77458.0,77446.0,0.11087067]
[1731206735394,0.8738149,77458.0,77455.0,0.22174134]
[1731206735688,0.02582844,77510.0,77470.0,0.14741405]
[1731206735882,0.0736,77514.0,77496.0,0.3608]
[1731206735883,0.0769,77504.0,77496.0,0.3608]
[1731206736082,0.38732,77497.0,77496.0,0.28818562]
[1731206737096,0.52310716,77497.0,77487.0,0.3608]
[1731206737403,0.38732,77490.0,77487.0,0.3608]
[1731206738611,0.38732,77488.0,77487.0,0.3608]
[1731206738798,0.41223849,77488.0,77487.0,0.3608]
[1731206738996,0.48993849,77488.0,77487.0,0.3608]
[1731206739489,0.0777,77488.0,77487.0,0.425285]
[1731206739697,0.46502,77488.0,77487.0,0.425285]
[1731206740493,0.46502,77488.0,77487.0,0.3608]
[1731206742831,0.0748,77499.0,77487.0,0.3608]
[1731206742832,0.1,77500.0,77487.0,0.85883067]
[1731206743094,0.14181878,77531.0,77499.0,0.3608]
[1731206743095,0.0749,77525.0,77499.0,0.3608]
[1731206743303,0.38925598,77521.0,77520.0,0.33498]
[1731206743491,0.00193598,77521.0,77520.0,0.33498]
[1731206743791,0.38925598,77521.0,77520.0,0.28334]
[1731206743997,0.38925598,77521.0,77520.0,0.25752]
[1731206744296,0.38925598,77521.0,77520.0,0.06455]
[1731206744992,0.38925598,77521.0,77519.0,0.064457]
[1731206745187,0.35050598,77520.0,77519.0,0.038637]
[1731206745602,0.35050598,77520.0,77519.0,0.03873]
[1731206745794,0.35050598,77520.0,77519.0,0.103187]
[1731206746305,0.35050598,77520.0,77519.0,0.03873]
[1731206747501,0.35050598,77520.0,77514.0,0.06455]
[1731206747704,0.11087067,77523.0,77514.0,0.06455]
[1731206747895,0.35050598,77515.0,77514.0,0.06455]
[1731206749808,0.0749,77525.0,77514.0,0.06455]
[1731206750101,0.0767,77542.0,77535.0,0.064445]
[1731206750306,0.0767,77542.0,77534.0,0.3608]
[1731206750307,0.35050598,77538.0,77534.0,0.3608]
[1731206751207,0.35050598,77537.0,77534.0,0.3608]
[1731206753096,0.0767,77542.0,77534.0,0.3608]
[1731206753302,0.35050598,77538.0,77534.0,0.3608]
[1731206753709,0.0767,77542.0,77534.0,0.3608]
[1731206754007,0.35050598,77541.0,77534.0,0.3608]
[1731206754813,0.0767,77542.0,77534.0,0.3608]
[1731206755005,0.35050598,77541.0,77534.0,0.3608]
[1731206756104,0.0767,77542.0,77534.0,0.3608]
[1731206756296,0.35050598,77540.0,77534.0,0.3608]
[1731206756502,0.35050598,77541.0,77535.0,0.11384]
[1731206757111,0.35050598,77540.0,77534.0,0.3608]
[1731206757305,0.35050598,77537.0,77534.0,0.3608]
[1731206757812,0.35050598,77536.0,77534.0,0.3608]
[1731206758204,0.46137665,77536.0,77534.0,0.3608]
[1731206758519,0.35050598,77536.0,77534.0,0.3608]
[1731206758901,0.3608,77544.0,77534.0,0.3608]
[1731206759104,0.35050598,77541.0,77534.0,0.3608]
[1731206761311,0.3608,77544.0,77539.0,0.11087067]
[1731206761505,0.35050598,77542.0,77539.0,0.11087067]
[1731206761707,0.3608,77544.0,77534.0,0.3608]
[1731206761708,0.35050598,77541.0,77534.0,0.3608]
[1731206762216,0.35050598,77541.0,77534.0,0.33498]
[1731206763517,0.35050598,77541.0,77534.0,0.34400552]
[1731206765207,0.35050598,77540.0,77534.0,0.34400552]
[1731206766309,0.3608,77544.0,77534.0,0.34400552]
[1731206766310,0.35050598,77536.0,77534.0,0.11364]
[1731206766512,0.1521,77535.0,77530.0,0.12256775]
[1731206766710,0.1521,77535.0,77530.0,0.11364]
[1731206767212,0.1521,77535.0,77531.0,0.02580095]
[1731206768225,0.3608,77544.0,77531.0,0.02580095]
[1731206768513,0.42610598,77540.0,77531.0,0.02580095]
[1731206768717,0.0756,77540.0,77535.0,0.11087067]
[1731206769324,0.01755227,77539.0,77531.0,0.02580095]
[1731206769509,0.42610598,77540.0,77531.0,0.02580095]
[1731206769510,0.01755227,77538.0,77531.0,0.02580095]
[1731206769712,0.01755227,77537.0,77531.0,0.02580095]
[1731206769913,0.42610598,77540.0,77531.0,0.02580095]
[1731206770419,0.01794215,77539.0,77531.0,0.02580095]
[1731206770712,0.01794215,77538.0,77531.0,0.02580095]
[1731206770917,0.01780587,77537.0,77531.0,0.02580095]
[1731206771122,0.42610598,77540.0,77531.0,0.02580095]
[1731206771321,0.01780595,77539.0,77531.0,0.02580095]
[1731206771518,0.35050598,77535.0,77531.0,0.02580095]
[1731206772012,0.3608,77536.0,77531.0,0.02580095]
[1731206772215,0.01812145,77535.0,77531.0,0.02580095]
[1731206772426,0.064442,77538.0,77531.0,0.06455]
[1731206772623,0.36864842,77537.0,77531.0,0.06455]
[1731206772926,0.35050598,77535.0,77531.0,0.06455]
[1731206773217,0.35050598,77534.0,77531.0,0.06455]
[1731206773415,0.01796689,77533.0,77527.0,0.06455]
[1731206773619,0.01796689,77532.0,77527.0,0.06455]
[1731206773824,0.01796689,77533.0,77527.0,0.06455]
[1731206774007,0.01796689,77532.0,77527.0,0.06455]
[1731206774213,0.01796689,77531.0,77527.0,0.06455]
[1731206774412,0.01796689,77530.0,77528.0,0.06455]
[1731206774614,0.35050598,77533.0,77528.0,0.06455]
[1731206774615,0.45516689,77529.0,77528.0,0.06455]
[1731206774814,0.50165,77529.0,77528.0,0.06455]
[1731206775219,0.50165,77529.0,77514.0,0.02580058]
[1731206775220,0.78770598,77529.0,77514.0,0.02580058]
[1731206775428,0.11087067,77515.0,77514.0,0.02580058]
[1731206775617,0.35050598,77515.0,77514.0,0.02580058]
[1731206776113,0.35050598,77515.0,77504.0,0.12524339]
[1731206776320,0.35050598,77510.0,77504.0,0.12524339]
[1731206776521,0.0764,77509.0,77504.0,0.12524339]
[1731206776724,0.01827231,77508.0,77504.0,0.12524339]
[1731206777033,0.01827231,77507.0,77505.0,0.06455]
[1731206777327,0.01827231,77506.0,77505.0,0.06455]
[1731206777822,0.01827231,77506.0,77504.0,0.12524339]
[1731206778019,0.01827231,77505.0,77504.0,0.01160339]
[1731206778726,0.36877829,77505.0,77504.0,0.01160339]
[1731206779818,0.36877829,77505.0,77504.0,0.01093464]
[1731206780214,0.064475,77498.0,77497.0,0.03792856]
[1731206780416,0.43325329,77498.0,77497.0,0.03792856]
[1731206780620,0.36877829,77498.0,77497.0,0.03792856]
[1731206781924,0.01827231,77498.0,77497.0,0.03792856]
[1731206782145,0.01827231,77504.0,77497.0,0.03792856]
[1731206782330,0.35050598,77499.0,77497.0,0.03792856]
[1731206782528,0.35050598,77499.0,77492.0,0.06448]
[1731206782837,0.31823541,77499.0,77496.0,0.03780521]
[1731206783025,0.31823541,77499.0,77494.0,0.03780521]
[1731206783240,0.39343541,77498.0,77494.0,0.03780521]
[1731206783521,0.39343541,77498.0,77491.0,0.03780521]
[1731206783923,0.39343541,77498.0,77489.0,0.36958114]
[1731206783924,0.39343541,77498.0,77490.0,0.03780521]
[1731206784118,0.01913795,77497.0,77490.0,0.03780521]
[1731206784428,0.39343541,77498.0,77490.0,0.03780521]
[1731206784728,0.39343541,77498.0,77491.0,0.11087067]
[1731206784927,0.39343541,77498.0,77492.0,0.06448]
[1731206785132,0.39343541,77498.0,77492.0,0.10228521]
[1731206785336,0.39343541,77498.0,77497.0,0.3608]
[1731206785535,0.0764,77509.0,77506.0,0.064469]
[1731206785736,0.0752,77517.0,77507.0,0.47167067]
[1731206786031,0.3608,77531.0,77519.0,0.064458]
[1731206786032,0.31823541,77520.0,77519.0,0.064458]
[1731206786739,0.31823541,77520.0,77515.0,0.3608]
[1731206787025,0.31823541,77519.0,77515.0,0.3608]
[1731206787226,0.0793,77522.0,77515.0,0.3608]
[1731206787227,0.31823541,77520.0,77515.0,0.3608]
[1731206787422,0.31823541,77521.0,77519.0,0.064457]
[1731206788025,0.0793,77522.0,77515.0,0.3608]
[1731206788332,0.31823541,77520.0,77515.0,0.3608]
[1731206788527,0.31823541,77521.0,77520.0,0.064457]
[1731206789133,0.33732886,77521.0,77520.0,0.064457]
[1731206790827,0.01909345,77521.0,77520.0,0.064457]
[1731206791023,0.0793,77522.0,77520.0,0.064457]
[1731206791924,0.0793,77522.0,77519.0,0.11087067]
[1731206791925,0.0744,77538.0,77519.0,0.17542067]
[1731206792131,0.1512,77529.0,77526.0,0.064451]
[1731206792329,0.01891117,77528.0,77527.0,0.112787]
[1731206792530,0.01891117,77528.0,77527.0,0.15225]
[1731206792728,0.33714658,77528.0,77527.0,0.15225]
[1731206793833,0.01891117,77528.0,77527.0,0.15225]
[1731206794628,0.1512,77529.0,77527.0,0.15225]
[1731206794629,0.13136117,77529.0,77527.0,0.15225]
[1731206794932,0.44959658,77529.0,77528.0,0.06445]
[1731206795133,0.13136117,77529.0,77528.0,0.06445]
[1731206795430,0.13136117,77529.0,77524.0,0.3608]
[1731206795431,0.44959658,77529.0,77524.0,0.3608]
[1731206795634,0.31823541,77525.0,77523.0,0.00885325]
[1731206795822,0.13136117,77529.0,77524.0,0.11352]
[1731206796335,0.31823541,77525.0,77521.0,0.064455]
[1731206796533,0.31823541,77524.0,77521.0,0.177975]
[1731206796736,0.31823541,77524.0,77521.0,0.064455]
[1731206797030,0.31823541,77522.0,77520.0,0.06455]
[1731206797240,0.13136117,77529.0,77520.0,0.06455]
[1731206797241,0.19581117,77529.0,77520.0,0.06455]
[1731206797432,0.19581117,77529.0,77515.0,0.36979548]
[1731206797433,0.31823541,77521.0,77515.0,0.36979548]
[1731206797642,0.31823541,77518.0,77515.0,0.36979548]
[1731206798135,0.0748,77520.0,77515.0,0.43425548]
[1731206798331,0.31823541,77519.0,77515.0,0.43425548]
[1731206798534,0.31823541,77519.0,77515.0,0.46005859]
[1731206799830,0.0731,77528.0,77515.0,0.39559859]
[1731206800031,0.0731,77528.0,77522.0,0.064455]
[1731206800431,0.31823541,77523.0,77522.0,0.064455]
[1731206801142,0.31823541,77523.0,77522.0,0.425255]
[1731206802034,0.31797504,77523.0,77522.0,0.425255]
[1731206802444,0.31797504,77523.0,77522.0,0.463985]
[1731206802630,0.0731,77528.0,77522.0,0.42535]
[1731206802841,0.02490637,77527.0,77526.0,0.064452]
[1731206803038,0.13136117,77529.0,77522.0,0.42535]
[1731206803233,0.02490529,77528.0,77523.0,0.06455]